bitfinex-derivatives/quotes_SOLF0:USTF0_20250614
["timestamp","ask_amount","ask_price","bid_price","bid_amount"]
[1749920890106,43.6641,143.97,143.89,0.04445359]
[1749920890305,48.99129136,143.97,143.92,0.05017045]
[1749920890505,5.32719136,143.93,143.92,7.045e-05]
[1749920890819,12.27179136,143.93,143.92,7.045e-05]
[1749920891910,14.58849136,143.93,143.92,7.045e-05]
[1749920896712,9.2613,143.93,143.92,7.045e-05]
[1749920896914,14.58849136,143.93,143.92,7.045e-05]
[1749920901422,9.2613,143.93,143.92,7.045e-05]
[1749920901626,6.9446,143.93,143.92,7.045e-05]
[1749920905429,12.27179136,143.93,143.92,7.045e-05]
[1749920906431,14.57009136,143.93,143.92,7.045e-05]
[1749920908937,9.2429,143.93,143.92,7.045e-05]
[1749920909134,6.9446,143.93,143.92,7.045e-05]
[1749920917141,12.27179136,143.93,143.92,7.045e-05]
[1749920917447,6.947,143.88,143.87,38.9]
[1749920917647,5.32719136,143.89,143.85,38.9]
[1749920918244,6.846,143.92,143.86,0.052239]
[1749920918441,0.05199886,143.88,143.86,0.052239]
[1749920918847,6.9478,143.87,143.86,0.052239]
[1749920919346,6.99949886,143.88,143.86,0.052239]
[1749920920548,0.05199886,143.88,143.86,0.052239]
[1749920922246,6.99939886,143.88,143.86,0.052239]
[1749920923449,0.05199886,143.88,143.86,0.052239]
[1749920925141,6.99909886,143.88,143.86,5.37943036]
[1749920927258,0.05199886,143.88,143.86,12.32723036]
[1749920927953,6.9462,143.9,143.87,6.9475]
[1749920928955,6.9462,143.9,143.87,6.99602416]
[1749920929347,6.9468,143.89,143.87,0.04852416]
[1749920931361,6.9464,143.9,143.87,0.04852416]
[1749920931656,6.9455,143.92,143.87,0.04852416]
[1749920931852,6.9455,143.92,143.88,5.32719136]
[1749920932054,6.9455,143.92,143.89,38.76]
[1749920932253,6.9455,143.92,143.89,45.7062]
[1749920934256,7.62009136,143.96,143.89,38.76]
[1749920934460,5.57292814,143.95,143.91,0.04706456]
[1749920934759,5.57292814,143.94,143.91,0.04706456]
[1749920934960,5.57292814,143.95,143.91,0.04706456]
[1749920935162,6.9451,143.92,143.91,0.04706456]
[1749920938874,12.27229136,143.92,143.91,6.456e-05]
[1749920939169,17.84530654,143.92,143.91,6.456e-05]
[1749920939572,12.51811518,143.92,143.91,6.456e-05]
[1749920940367,6.9451,143.92,143.91,6.456e-05]
[1749920940667,12.51810098,143.92,143.91,6.456e-05]
[1749920941167,6.9451,143.92,143.91,6.456e-05]
[1749920941565,6.9942092,143.93,143.91,6.456e-05]
[1749920941761,0.0493092,143.93,143.91,6.456e-05]
[1749920941961,5.56988747,143.92,143.91,6.456e-05]
[1749920942266,12.51498747,143.92,143.91,6.456e-05]
[1749920942866,6.9451,143.92,143.91,6.456e-05]
[1749920949773,6.9451,143.92,143.91,5.32725592]
[1749920953673,6.9942092,143.93,143.91,5.32725592]
[1749920953871,6.9942092,143.93,143.92,38.74]
[1749920955067,0.0493092,143.93,143.92,38.74]
[1749920955574,2.3532,143.98,143.92,38.74]
[1749920955767,6.9436,143.96,143.92,45.6851]
[1749920956274,6.944,143.95,143.92,38.74]
[1749920959675,6.9444,143.94,143.92,38.74]
[1749920960172,7.68039136,143.98,143.92,38.74]
[1749920960373,7.74908097,143.97,143.92,38.74]
[1749920960565,2.1804,143.97,143.92,38.74]
[1749920960977,5.32719136,143.96,143.92,38.74]
[1749920961176,9.75439136,143.97,143.92,38.74]
[1749920961376,6.9445,143.94,143.92,38.74]
[1749920961879,6.9446,143.93,143.92,38.74]
[1749920962081,2.1804,143.97,143.92,38.74]
[1749920962471,6.9441,143.95,143.92,38.74]
[1749920962671,2.1804,143.97,143.92,44.06719136]
[1749920963068,6.9435,143.96,143.92,44.06719136]
[1749920963471,9.1232,143.97,143.92,51.01199136]
[1749920963675,2.3532,143.98,143.92,38.74]
[1749920963975,6.9438,143.95,143.92,44.06719136]
[1749920964277,2.3532,143.98,143.92,38.74]
[1749920965067,7.92287696,143.98,143.92,38.74]
[1749920965267,2.3532,143.98,143.92,38.74]
[1749920965670,7.92410272,143.98,143.92,38.74]
[1749920965868,2.3532,143.98,143.92,38.74]
[1749920966071,6.944,143.95,143.92,38.74]
[1749920967478,6.9443,143.94,143.92,38.74]
[1749920970185,6.9446,143.93,143.92,38.74]
[1749920970885,6.9444,143.94,143.92,38.74]
[1749920972379,2.3532,143.98,143.92,44.06719136]
[1749920972790,6.9434,143.96,143.92,51.01229136]
[1749920974282,6.9439,143.95,143.92,51.01229136]
[1749920978888,6.9442,143.94,143.92,51.01229136]
[1749920979082,6.9442,143.94,143.92,44.06719136]
[1749920979284,2.3532,143.98,143.92,44.06719136]
[1749920979485,6.9439,143.95,143.92,44.06719136]
[1749920979785,6.9439,143.95,143.92,51.01209136]
[1749920983092,6.9439,143.95,143.92,51.01189136]
[1749920985201,6.9434,143.96,143.93,6.9445]
[1749920985391,6.9434,143.96,143.93,6.98837233]
[1749920986803,2.3532,143.98,143.93,0.04387233]
[1749920986998,5.5949904,143.97,143.93,0.04387233]
[1749920987203,2.3532,143.98,143.93,0.04387233]
[1749920987204,6.9439,143.95,143.93,0.04387233]
[1749920990209,2.3532,143.98,143.93,0.04387233]
[1749920990704,6.9439,143.95,143.93,0.04387233]
[1749920992506,6.9439,143.95,143.93,6.98847233]
[1749920995408,6.9434,143.96,143.94,6.9441]
[1749920996809,6.9429,143.97,143.94,12.2422075]
[1749920997003,2.419,144.01,143.95,6.9436]
[1749920997204,8.29386583,144.0,143.96,38.4]
[1749920997403,6.9427,143.98,143.97,0.05074832]
[1749920997604,12.54340729,143.98,143.97,0.05074832]
[1749921000497,15.2388741,143.98,143.97,0.05074832]
[1749921001314,15.23862298,143.98,143.97,0.05074832]
[1749921001908,15.23862298,143.98,143.97,4.832e-05]
[1749921002111,15.23686914,143.98,143.97,4.832e-05]
[1749921002309,8.29416914,143.98,143.93,38.4]
[1749921002505,10.62986534,143.97,143.93,38.4]
[1749921002712,5.60070729,143.96,143.93,38.4]
[1749921002921,2.3363,143.97,143.93,38.4]
[1749921003210,5.6469392,143.96,143.94,0.0512018]
[1749921003416,11.68564918,143.95,143.92,38.4]
[1749921003611,8.99281916,143.94,143.92,38.4]
[1749921003818,6.9446,143.93,143.92,38.4]
[1749921004815,6.9451,143.92,143.91,0.04388486]
[1749921006721,6.9451,143.92,143.91,8.486e-05]
[1749921006916,12.53114907,143.92,143.91,8.486e-05]
[1749921007313,15.21960993,143.92,143.91,8.486e-05]
[1749921008120,12.53114907,143.92,143.91,8.486e-05]
[1749921008619,14.92164907,143.92,143.91,8.486e-05]
[1749921009320,17.59755694,143.92,143.91,8.486e-05]
[1749921009521,14.92164907,143.92,143.91,8.486e-05]
[1749921009916,17.59612506,143.92,143.91,8.486e-05]
[1749921010414,14.92164907,143.92,143.91,8.486e-05]
[1749921010612,17.5962,143.92,143.91,8.486e-05]
[1749921011021,17.59608993,143.92,143.91,8.486e-05]
[1749921011819,17.59584181,143.92,143.91,8.486e-05]
[1749921012323,17.59591317,143.92,143.91,8.486e-05]
[1749921013814,6.9475,143.87,143.86,0.67308]
[1749921023125,6.99559431,143.88,143.86,0.67308]
[1749921023724,6.9475,143.87,143.86,0.67308]
[1749921028119,0.04849431,143.88,143.86,0.67308]
[1749921028829,6.99579431,143.88,143.86,0.67308]
[1749921029030,0.04849431,143.88,143.86,0.67308]
[1749921029232,0.04849431,143.88,143.86,38.93308]
[1749921029432,6.9475,143.87,143.86,38.93308]
[1749921033630,6.99569431,143.88,143.86,38.93308]
[1749921033823,0.04849431,143.88,143.86,38.93308]
[1749921034430,0.04849431,143.88,143.86,45.88058]
[1749921035029,0.04849431,143.88,143.86,38.93308]
[1749921035232,6.99589431,143.88,143.86,38.93308]
[1749921036037,6.9475,143.87,143.86,38.93308]
[1749921039440,6.99579431,143.88,143.86,38.93308]
[1749921041835,0.04849431,143.88,143.86,38.93308]
[1749921042041,6.9475,143.87,143.86,38.93308]
[1749921046547,6.99569431,143.88,143.86,38.93308]
[1749921046946,0.04849431,143.88,143.86,38.93308]
[1749921047742,6.99579431,143.88,143.86,38.93308]
[1749921047943,0.04849431,143.88,143.86,38.93308]
[1749921048345,6.99579431,143.88,143.86,38.93308]
[1749921048756,0.04849431,143.88,143.86,44.2356918]
[1749921048961,0.04849431,143.88,143.86,53.4926918]
[1749921049365,0.04849431,143.88,143.86,46.5446918]
[1749921050662,6.99559431,143.88,143.86,46.5446918]
[1749921053168,6.9475,143.87,143.86,46.5446918]
[1749921053668,6.9475,143.87,143.86,45.8716118]
[1749921058274,0.04849431,143.88,143.86,45.8716118]
[1749921058772,27.92300667,143.96,143.86,45.8716118]
[1749921058971,8.27517519,143.95,143.88,5.3026118]
[1749921059275,27.92300667,143.96,143.89,140.1]
[1749921059276,6.9463,143.9,143.89,140.1]
[1749921060171,6.99492493,143.91,143.89,140.1]
[1749921060469,6.99492493,143.91,143.9,38.12]
[1749921061063,0.04912493,143.91,143.9,38.12]
[1749921061268,0.04912493,143.91,143.9,43.4226118]
[1749921061466,2.2839,143.99,143.9,43.4226118]
[1749921061665,6.944,143.95,143.92,12.2476118]
[1749921062568,6.99221574,143.95,143.92,12.29552186]
[1749921063571,0.04821574,143.95,143.94,5.3026118]
[1749921063768,0.04821574,143.95,143.94,43.4226118]
[1749921064370,0.04821574,143.95,143.94,38.12]
[1749921065170,6.99191574,143.95,143.94,38.12]
[1749921065969,6.9446,143.93,143.92,0.04791006]
[1749921068678,6.9443,143.94,143.92,0.04791006]
[1749921069074,0.04821574,143.95,143.92,0.04791006]
[1749921069378,6.99221574,143.95,143.92,0.04791006]
[1749921069572,0.04821574,143.95,143.92,0.04791006]
[1749921070773,6.9446,143.93,143.92,0.04791006]
[1749921088190,6.9444,143.94,143.92,0.04791006]
[1749921088500,0.04821574,143.95,143.92,5.35052186]
[1749921089587,0.04821574,143.95,143.94,12.2468118]
[1749921089789,0.04821574,143.95,143.94,50.2268118]
[1749921090188,4.6543,144.0,143.94,43.2826118]
[1749921090591,2.3435,144.0,143.94,43.2826118]
[1749921090787,6.9427,143.98,143.95,6.9434]
[1749921090991,2.3435,144.0,143.94,43.2826118]
[1749921091198,6.9432,143.96,143.95,0.04402099]
[1749921106806,6.9432,143.96,143.95,2.099e-05]
[1749921107103,12.5660642,143.96,143.95,2.099e-05]
[1749921109410,15.24711875,143.96,143.95,2.099e-05]
[1749921110702,12.5660642,143.96,143.95,2.099e-05]
[1749921110907,15.24802491,143.96,143.95,2.099e-05]
[1749921111808,15.24797052,143.96,143.95,2.099e-05]
[1749921113407,15.24797374,143.96,143.95,2.099e-05]
[1749921114515,12.5660642,143.96,143.95,2.099e-05]
[1749921114699,15.24452807,143.96,143.95,2.099e-05]
[1749921115213,6.9451,143.92,143.91,37.98]
[1749921115607,5.3026118,143.93,143.88,37.86]
[1749921116211,0.04402099,143.92,143.89,0.04392832]
[1749921116708,5.3026118,143.91,143.89,0.04392832]
[1749921117811,6.9465,143.9,143.89,0.04392832]
[1749921118415,6.947,143.88,143.87,37.86]
[1749921125524,6.9475,143.87,143.86,0.05078567]
[1749921125923,6.9475,143.87,143.86,8.567e-05]
[1749921146836,12.2501118,143.87,143.86,8.567e-05]
[1749921147423,6.9504,143.81,143.8,0.63377]
[1749921148228,6.9504,143.81,143.8,0.53705995]
[1749921154136,7.00055304,143.82,143.8,0.53705995]
[1749921154742,0.05035304,143.82,143.8,43.57967175]
[1749921154944,0.05035304,143.82,143.8,45.81447175]
[1749921155345,7.00035304,143.82,143.8,45.81447175]
[1749921155540,0.05035304,143.82,143.8,40.51185995]
[1749921156044,6.9504,143.81,143.8,38.27705995]
[1749921159339,6.9504,143.81,143.8,0.53705995]
[1749921161243,6.9504,143.81,143.79,0.05192987]
[1749921161447,6.9509,143.8,143.79,8.982e-05]
[1749921162447,6.9533,143.75,143.74,39.9948]
[1749921162849,5.3026118,143.8,143.74,39.9948]
[1749921163046,6.9532,143.76,143.74,39.9948]
[1749921163449,7.00082205,143.76,143.74,40.04603599]
[1749921164343,6.9533,143.75,143.74,40.04603599]
[1749921166753,7.00062205,143.76,143.74,40.04603599]
[1749921169448,6.9533,143.75,143.74,40.04603599]
[1749921171360,7.00052205,143.76,143.74,40.04603599]
[1749921171853,7.00052205,143.76,143.74,45.34864779]
[1749921172460,7.00052205,143.76,143.74,52.30244779]
[1749921172663,0.04762205,143.76,143.74,52.30244779]
[1749921173160,0.04762205,143.76,143.75,6.9533]
[1749921173351,2.2506,143.82,143.75,6.9533]
[1749921173557,2.2506,143.82,143.76,5.3026118]
[1749921173864,6.952,143.78,143.76,5.3026118]
[1749921174254,7.00521332,143.78,143.76,5.3026118]
[1749921174459,7.00521332,143.78,143.76,5.35597316]
[1749921175557,0.05321332,143.78,143.76,12.30857316]
[1749921175763,0.05321332,143.78,143.76,0.05336136]
[1749921176261,6.9524,143.77,143.76,0.05336136]
[1749921186165,0.05321332,143.78,143.76,5.35597316]
[1749921186369,4.05,143.84,143.77,139.3]
[1749921186572,4.05,143.84,143.8,5.3026118]
[1749921187373,0.0526441,143.83,143.81,0.04806544]
[1749921188070,6.9499,143.82,143.81,0.04806544]
[1749921193373,4.0926441,143.83,143.81,0.04806544]
[1749921193675,4.0926441,143.83,143.82,42.9226118]
[1749921194674,4.0926441,143.83,143.82,49.8725118]
[1749921197072,6.9488,143.85,143.82,49.8725118]
[1749921197073,4.6349,143.92,143.83,6.9494]
[1749921197376,12.54223883,143.92,143.85,5.3026118]
[1749921197576,5.58183883,143.91,143.85,5.3026118]
[1749921198275,6.948,143.87,143.85,5.3026118]
[1749921198474,0.03718537,143.89,143.85,5.35369622]
[1749921198671,6.9476,143.87,143.85,5.35369622]
[1749921198878,6.9476,143.87,143.86,37.62]
[1749921200072,6.9471,143.88,143.86,37.62]
[1749921200269,0.03718537,143.89,143.87,5.3026118]
[1749921200980,0.03718537,143.89,143.87,12.2500118]
[1749921201578,0.03718537,143.89,143.88,6.947]
[1749921201771,0.03718537,143.89,143.87,5.3026118]
[1749921202177,0.03718537,143.89,143.87,12.2497118]
[1749921203582,0.03718537,143.89,143.87,5.3026118]
[1749921204382,6.98388537,143.89,143.87,5.3026118]
[1749921206381,6.98388537,143.89,143.88,37.48]
[1749921226697,0.03718537,143.89,143.88,37.48]
[1749921226902,0.03718537,143.89,143.88,42.7826118]
[1749921227304,6.98378537,143.89,143.88,42.7826118]
[1749921233308,0.03718537,143.89,143.88,42.7826118]
[1749921236311,6.98378537,143.89,143.88,42.7826118]
[1749921237505,2.2448,143.95,143.88,42.7826118]
[1749921237707,5.63034917,143.94,143.88,42.7826118]
[1749921237908,2.2448,143.95,143.88,42.7826118]
[1749921238106,6.9457,143.91,143.88,49.7295118]
[1749921238503,6.9457,143.91,143.88,49.77626144]
[1749921239004,2.2448,143.95,143.88,42.82936144]
[1749921239513,6.9464,143.9,143.88,42.82936144]
[1749921241406,6.9466,143.89,143.88,42.82936144]
[1749921242904,6.9466,143.89,143.88,37.52674964]
[1749921243211,6.9466,143.89,143.88,0.04674964]
[1749921243613,6.9466,143.89,143.88,37.38674964]
[1749921259136,6.9486,143.85,143.83,138.66]
[1749921259329,6.9486,143.85,143.84,37.34]
[1749921260033,0.04674965,143.86,143.84,37.34]
[1749921260335,0.04674965,143.86,143.84,37.38628712]
[1749921261840,11.76027378,143.94,143.85,5.3026118]
[1749921262033,5.63820866,143.93,143.85,5.3026118]
[1749921262234,5.63820866,143.92,143.85,5.3026118]
[1749921262430,5.63820866,143.91,143.85,5.3026118]
[1749921262627,11.76027378,143.94,143.85,5.3026118]
[1749921262831,8.30507925,143.93,143.88,0.04446625]
[1749921263031,5.63885361,143.92,143.88,0.04446625]
[1749921263334,5.63885361,143.91,143.88,0.04446625]
[1749921263534,6.9466,143.89,143.88,0.04446625]
[1749921265039,6.9466,143.89,143.88,37.38446625]
[1749921266639,12.58068353,143.89,143.79,50.30328493]
[1749921266835,50.26007999,143.88,143.77,12.96328493]
[1749921267030,50.26007999,143.88,143.73,50.30328493]
[1749921267031,5.3026118,143.79,143.73,50.30328493]
[1749921267233,5.3026118,143.77,143.73,37.34]
[1749921267541,6.9536,143.75,143.74,0.04387218]
[1749921278351,0.04400296,143.76,143.74,0.04387218]
[1749921278850,6.99730296,143.76,143.74,0.04387218]
[1749921279149,0.04400296,143.76,143.74,0.04387218]
[1749921279353,6.9533,143.75,143.74,0.04387218]
[1749921284053,12.2559118,143.75,143.74,7.218e-05]
[1749921289655,6.9533,143.75,143.74,7.218e-05]
[1749921308075,6.99720296,143.76,143.74,7.218e-05]
[1749921309877,6.9533,143.75,143.74,7.218e-05]
[1749921312477,6.99710296,143.76,143.74,7.218e-05]
[1749921312871,0.04400296,143.76,143.75,5.3026118]
[1749921313579,6.9516,143.79,143.75,5.3026118]
[1749921313877,5.3026118,143.85,143.77,5.3026118]
[1749921314074,2.7230099,143.84,143.78,37.12]
[1749921314265,6.9512,143.8,143.78,37.12]
[1749921314776,0.04426329,143.8,143.78,37.16657828]
[1749921315576,6.9514,143.79,143.78,37.16657828]
[1749921319781,6.99546329,143.8,143.78,37.16657828]
[1749921319987,0.04426329,143.8,143.78,37.16657828]
[1749921320279,6.99556329,143.8,143.78,37.16657828]
[1749921320469,0.04426329,143.8,143.78,37.16657828]
[1749921320883,6.9514,143.79,143.78,37.16657828]
[1749921324897,0.04426329,143.8,143.78,44.11847828]
[1749921325492,6.99536329,143.8,143.78,37.16657828]
[1749921326596,0.04426329,143.8,143.78,37.16657828]
[1749921326790,0.04426329,143.8,143.79,5.3026118]
[1749921329294,0.04426329,143.8,143.79,12.2540118]
[1749921330894,44.7610118,143.86,143.79,12.2540118]
[1749921330895,2.2686,143.87,143.82,6.9498]
[1749921331104,2.2686,143.87,143.82,49.2324118]
[1749921331294,2.2686,143.87,143.82,42.2826118]
[1749921331895,2.2686,143.87,143.83,0.05307183]
[1749921332096,6.949,143.84,143.83,0.05307183]
[1749921333295,6.9487,143.85,143.83,0.05307183]
[1749921334098,6.949,143.84,143.83,0.05307183]
[1749921334791,6.9487,143.85,143.83,0.05307183]
[1749921335187,12.1005118,143.91,143.84,5.3026118]
[1749921335392,4.5404,143.91,143.86,5.34941392]
[1749921335897,4.5404,143.91,143.86,42.32941392]
[1749921336099,5.58641332,143.94,143.86,42.32941392]
[1749921336300,5.58641332,143.94,143.89,0.05320296]
[1749921336500,49.0518118,143.95,143.89,0.05320296]
[1749921336701,6.9464,143.9,143.89,0.05320296]
[1749921338404,43.7492,143.95,143.89,0.05320296]
[1749921338801,6.7692,143.95,143.89,0.05320296]
[1749921339806,6.946,143.91,143.89,0.05320296]
[1749921340900,6.946,143.91,143.9,36.96]
[1749921342106,5.3026118,143.91,143.87,36.96]
[1749921342308,5.3026118,143.91,143.85,36.96]
[1749921342506,6.9477,143.87,143.85,36.96]
[1749921342808,5.3026118,143.91,143.85,36.96]
[1749921343201,0.04619179,143.89,143.87,0.05138866]
[1749921343602,6.947,143.88,143.87,0.05138866]
[1749921348413,6.99279179,143.89,143.87,0.05138866]
[1749921348607,0.04619179,143.89,143.87,0.05138866]
[1749921349308,6.947,143.88,143.87,0.05138866]
[1749921349917,0.04619179,143.89,143.87,0.05138866]
[1749921350412,6.99309179,143.89,143.87,0.05138866]
[1749921351914,0.04619179,143.89,143.88,5.3026118]
[1749921353814,0.04619179,143.89,143.88,12.2496118]
[1749921354004,6.9459,143.91,143.9,5.3026118]
[1749921355913,6.9461,143.9,143.89,36.96]
[1749921356717,6.9458,143.91,143.89,36.96]
[1749921357316,36.96,143.97,143.89,36.96]
[1749921360212,6.9454,143.92,143.89,43.9065]
[1749921360412,6.9454,143.92,143.9,5.3026118]
[1749921360612,36.96,143.97,143.9,5.3026118]
[1749921360812,36.96,143.97,143.91,0.05178037]
[1749921361717,6.9456,143.92,143.91,0.05178037]
[1749921362820,4.5405,143.95,143.91,0.05178037]
[1749921363023,2.3348,143.95,143.91,0.05178037]
[1749921363718,6.9442,143.94,143.91,6.99728037]
[1749921364122,4.547,143.99,143.93,6.9444]
[1749921364325,12.43113975,143.99,143.95,0.04659176]
[1749921364617,6.8038,143.99,143.95,0.04659176]
[1749921364823,6.9433,143.96,143.95,0.04659176]
[1749921365921,6.9429,143.97,143.95,0.04659176]
[1749921366723,6.45005592,144.04,143.96,5.29213487]
[1749921366920,2.3975,144.05,144.0,5.29213487]
[1749921367118,2.3975,144.05,144.01,0.05354196]
[1749921367923,2.3975,144.05,144.02,5.29213487]
[1749921368336,4.5625,144.07,144.01,42.18567683]
[1749921368621,2.2661,144.06,144.01,42.18567683]
[1749921368827,2.2661,144.06,144.01,36.89354196]
[1749921369524,6.9398,144.03,144.01,36.89354196]
[1749921369920,2.2661,144.06,144.02,5.29213487]
[1749921370226,6.9394,144.04,144.02,5.29213487]
[1749921370428,2.2661,144.06,144.02,5.29213487]
[1749921370730,6.9394,144.04,144.02,5.29213487]
[1749921370922,7.55823487,144.06,144.01,0.05354196]
[1749921371120,6.9415,144.0,143.98,42.11213487]
[1749921371522,7.55823487,144.06,143.98,42.11213487]
[1749921371825,6.9407,144.02,144.0,5.29213487]
[1749921372027,0.05275964,144.02,144.0,5.34342169]
[1749921373524,6.9395,144.04,144.0,5.34342169]
[1749921373821,6.9395,144.04,144.03,5.29213487]
[1749921377327,2.2661,144.06,144.03,5.29213487]
[1749921377529,2.2661,144.06,144.03,5.34447768]
[1749921377728,6.9393,144.04,144.03,5.34447768]
[1749921378137,2.2661,144.06,144.03,5.34447768]
[1749921378426,6.9391,144.05,144.03,5.34447768]
[1749921379034,6.9385,144.06,144.03,5.34447768]
[1749921379732,6.9389,144.05,144.03,5.34447768]
[1749921380125,6.9393,144.04,144.03,0.05234281]
[1749921387126,6.9393,144.04,144.03,4.281e-05]
[1749921392644,9.1589,144.04,144.03,4.281e-05]
[1749921394043,14.78994396,144.04,144.03,4.281e-05]
[1749921394241,51.48994396,144.04,144.03,4.281e-05]
[1749921397738,54.24145356,144.04,144.03,4.281e-05]
[1749921398645,54.24145068,144.04,144.03,4.281e-05]
[1749921399446,6.9422,143.98,143.97,36.7]
[1749921402747,6.9427,143.97,143.96,0.04580186]
[1749921412239,0.05087843,143.99,143.96,0.04580186]
[1749921412742,6.9427,143.97,143.96,0.04580186]
[1749921421161,6.9425,143.98,143.96,0.04580186]
[1749921421355,0.05087843,143.99,143.96,0.04580186]
[1749921421858,6.9425,143.98,143.96,0.04580186]
[1749921422457,6.9422,143.98,143.96,0.04580186]
[1749921422959,6.99287843,143.99,143.96,5.33793673]
[1749921424051,6.99287843,143.99,143.96,12.28113673]
[1749921425357,6.9423,143.98,143.96,5.33793673]
[1749921425754,6.9427,143.97,143.96,0.04580186]
[1749921426854,0.05087843,143.99,143.96,6.98900186]
[1749921427261,6.99287843,143.99,143.97,5.29213487]
[1749921427457,6.99287843,143.99,143.98,36.62]
[1749921427664,0.05087843,143.99,143.98,36.62]
[1749921427862,0.05087843,143.99,143.98,41.91213487]
[1749921429974,2.2196,144.04,143.98,48.85433487]
[1749921430169,6.9407,144.02,143.98,48.85433487]
[1749921430367,6.9407,144.02,143.98,41.91213487]
[1749921430872,6.9407,144.02,143.99,0.04946741]
[1749921431273,36.62,144.07,144.0,5.29213487]
[1749921431468,36.62,144.07,144.02,0.04862857]
[1749921431972,6.9398,144.03,144.02,0.04862857]
[1749921433873,6.9395,144.04,144.02,0.04862857]
[1749921434275,6.9395,144.04,144.02,36.64862857]
[1749921434574,2.2223,144.08,144.02,36.64862857]
[1749921435469,2.75876501,144.07,144.02,36.64862857]
[1749921435773,6.9396,144.04,144.02,36.64862857]
[1749921436573,6.939,144.05,144.02,36.64862857]
[1749921437477,6.939,144.05,144.02,41.94076344]
[1749921437679,6.939,144.05,144.02,48.88106344]
[1749921438173,6.9394,144.04,144.02,41.94076344]
[1749921439372,6.9398,144.03,144.02,41.94076344]
[1749921439579,6.9398,144.03,144.02,36.64862857]
[1749921440773,2.2223,144.08,144.02,36.64862857]
[1749921440977,6.9395,144.04,144.02,36.64862857]
[1749921441178,2.2223,144.08,144.02,36.64862857]
[1749921441378,6.9395,144.04,144.02,36.64862857]
[1749921444278,6.9398,144.03,144.02,36.64862857]
[1749921444485,0.04434489,144.04,143.97,399.82]
[1749921444687,0.04434489,144.04,143.98,36.6]
[1749921444880,6.941,144.01,143.98,36.6]
[1749921445585,6.99039693,144.01,143.98,36.64759709]
[1749921445884,0.04939693,144.01,143.98,41.93973196]
[1749921446480,0.04939693,144.01,143.98,48.88173196]
[1749921447282,2.2223,144.08,144.0,5.29213487]
[1749921447586,7.88310276,144.08,144.02,5.29213487]
[1749921447781,7.88310276,144.08,144.03,36.6]
[1749921448486,7.88310276,144.08,144.04,0.04734298]
[1749921448885,6.9388,144.05,144.04,0.04734298]
[1749921460493,9.20663116,144.12,144.04,0.04734298]
[1749921460698,2.73902298,144.12,144.05,5.29123968]
[1749921460899,2.4194,144.11,144.07,0.04697452]
[1749921461198,6.9374,144.08,144.07,0.04697452]
[1749921467004,9.3556,144.11,144.07,0.04697452]
[1749921467801,6.46760818,144.2,144.1,5.28674905]
[1749921467997,6.46760818,144.2,144.14,0.04956905]
[1749921467998,7.9139999,144.19,144.14,0.04956905]
[1749921468200,6.9334,144.17,144.14,0.04956905]
[1749921468795,6.9336,144.16,144.14,0.04956905]
[1749921469197,4.4677,144.19,144.14,0.04956905]
[1749921469403,6.9332,144.17,144.14,0.04956905]
[1749921472306,6.9332,144.17,144.14,5.33354831]
[1749921473005,6.9327,144.18,144.14,5.33354831]
[1749921473306,4.4677,144.19,144.14,0.04956905]
[1749921473707,6.9332,144.17,144.14,0.04956905]
[1749921474100,4.4677,144.19,144.14,0.04956905]
[1749921474610,4.4677,144.19,144.15,6.9337]
[1749921475199,4.4677,144.19,144.15,12.21767926]
[1749921475399,11.3999,144.19,144.15,5.28397926]
[1749921476008,11.3999,144.19,144.15,12.21797926]
[1749921477113,11.3999,144.19,144.14,12.26774831]
[1749921479517,11.3999,144.19,144.15,6.934]
[1749921479911,2.342,144.21,144.16,5.28397926]
[1749921480211,2.342,144.21,144.17,0.04945741]
[1749921480416,6.9316,144.2,144.17,0.04945741]
[1749921480612,2.342,144.21,144.17,0.04945741]
[1749921480919,4.6465,144.23,144.18,5.28397926]
[1749921481320,2.3352,144.23,144.2,5.28397926]
[1749921481516,1.20686666,144.32,144.22,5.27749668]
[1749921481713,5.65399807,144.34,144.27,5.27323892]
[1749921481908,5.65399807,144.34,144.29,0.05264861]
[1749921482108,6.9262,144.32,144.29,0.05264861]
[1749921483015,5.27323892,144.34,144.29,0.05264861]
[1749921483219,10.9151092,144.34,144.24,41.67323892]
[1749921483415,10.9151092,144.34,144.26,5.27323892]
[1749921483927,10.9151092,144.34,144.25,5.27323892]
[1749921484116,10.9151092,144.34,144.25,12.20233892]
[1749921484326,0.04382469,144.31,144.28,0.05177749]
[1749921485820,6.9273,144.29,144.28,0.05177749]
[1749921487621,0.04382469,144.31,144.28,36.43177749]